bitfinex/quotes_ETHUSD_20250219
["timestamp","ask_amount","ask_price","bid_price","bid_amount"]
[1739994024177,3.67731,2719.4,2719.1,0.4950069]
[1739994024376,3.6772,2719.5,2719.0,0.8222]
[1739994024774,3.0,2719.8,2719.2,3.67746]
[1739994025090,5.36,2719.9,2719.4,3.67726]
[1739994025254,9.0367,2719.9,2719.3,4.49775]
[1739994025451,9.0367,2719.9,2719.4,3.67725]
[1739994025693,5.36,2719.9,2719.5,0.8204]
[1739994025866,5.36,2719.9,2719.5,4.4975]
[1739994026068,7.4128705,2720.2,2719.6,3.67693]
[1739994026267,3.67618,2720.3,2719.8,3.67666]
[1739994026481,3.0,2720.2,2719.7,3.67687]
[1739994026651,3.0,2720.2,2719.7,4.494328]
[1739994026881,6.67632,2720.2,2719.7,0.817458]
[1739994027429,7.35278,2720.1,2719.7,0.817458]
[1739994027584,3.67685,2719.8,2719.3,0.8325]
[1739994028127,3.14673576,2719.9,2719.3,0.8325]
[1739994028431,3.67668,2719.9,2719.3,0.8325]
[1739994028574,3.67734,2719.4,2719.0,0.8064]
[1739994028775,3.67734,2719.4,2719.0,1.78684]
[1739994029023,3.67734,2719.4,2719.0,0.8064]
[1739994029190,3.67709,2719.6,2719.0,0.8064]
[1739994029387,3.67709,2719.6,2719.1,3.67761]
[1739994029603,6.67688,2719.7,2719.0,4.48419]
[1739994029909,3.0,2719.7,2719.2,3.67754]
[1739994030228,5.36,2720.2,2719.3,0.7699]
[1739994030379,3.0,2720.1,2719.5,3.67704]
[1739994030720,3.67649,2720.0,2719.4,0.7699]
[1739994030931,3.67649,2720.0,2719.4,4.44711]
[1739994031218,7.35306,2720.0,2719.4,5.259555]
[1739994031422,3.67674,2719.8,2719.4,1.582365]
[1739994031998,3.67661,2719.9,2719.4,1.582365]
[1739994032585,3.73603044,2719.8,2719.4,0.7699]
[1739994032799,3.67688,2719.7,2719.4,0.7699]
[1739994033027,3.67688,2719.7,2719.1,0.7699]
[1739994033326,0.06033459,2719.6,2719.1,0.7699]
[1739994033482,3.67654,2720.0,2719.5,0.7651]
[1739994033681,0.06058774,2719.9,2719.5,1.16060402]
[1739994034095,7.4448,2720.2,2719.6,3.67695]
[1739994034341,3.67649,2720.0,2719.5,1.16060402]
[1739994034540,3.67649,2720.0,2719.5,4.83771402]
[1739994034861,3.67695,2719.7,2719.5,1.16060402]
[1739994035042,3.67695,2719.7,2719.0,5.32]
[1739994035214,3.67695,2719.7,2719.1,4.44278]
[1739994035416,3.67708,2719.6,2719.1,0.7651]
[1739994035655,3.67708,2719.6,2719.1,1.741384]
[1739994035860,3.67695,2719.7,2719.1,1.741384]
[1739994036030,3.67705,2719.6,2719.1,1.741384]
[1739994036227,3.73748104,2719.6,2719.1,1.741384]
[1739994036438,0.06043104,2719.6,2719.1,1.741384]
[1739994036658,3.6772,2719.5,2719.1,1.741384]
[1739994036818,3.67702,2719.6,2719.1,1.741384]
[1739994037018,0.06031449,2719.4,2719.1,5.419044]
[1739994037319,0.0602562,2719.3,2719.2,1.4416744]
[1739994037535,3.67696,2719.7,2719.2,1.4416744]
[1739994037749,0.06054488,2719.6,2719.2,1.4416744]
[1739994038078,3.73756488,2719.6,2719.2,1.4416744]
[1739994038266,3.73756488,2719.6,2719.1,4.4427]
[1739994038429,0.06054488,2719.6,2719.1,0.7651]
[1739994038634,3.67714,2719.5,2718.9,0.7977]
[1739994038946,0.0602957,2719.4,2719.0,3.67781]
[1739994040059,0.0602957,2719.4,2718.9,0.7977]
[1739994040261,0.0602957,2719.4,2719.0,0.979568]
[1739994040574,0.0602957,2719.4,2719.0,4.657378]
[1739994040753,0.0602957,2719.4,2719.0,0.979568]
[1739994041065,3.67726,2719.5,2719.0,0.979568]
[1739994041266,3.67714,2719.5,2719.0,0.979568]
[1739994041446,3.67734,2719.4,2718.9,0.7977]
[1739994041657,7.35473,2719.4,2718.9,0.7977]
[1739994041963,7.35475,2719.4,2718.9,0.7977]
[1739994042166,3.67734,2719.4,2718.9,0.7977]
[1739994042465,3.6772,2719.5,2718.9,0.7977]
[1739994042965,3.6772,2719.5,2718.9,4.47565]
[1739994043471,3.67728,2719.4,2718.9,4.47565]
[1739994043654,3.73732971,2719.4,2718.9,4.47565]
[1739994044265,0.06004971,2719.4,2718.9,4.47565]
[1739994044476,0.06004971,2719.4,2719.0,3.67782]
[1739994044971,0.06004971,2719.4,2718.9,1.245265]
[1739994045264,3.73732971,2719.4,2718.9,1.245265]
[1739994045464,0.06004971,2719.4,2718.9,1.245265]
[1739994045830,3.6771,2719.6,2719.0,3.67774]
[1739994046030,0.05798584,2719.3,2719.2,3.67755]
[1739994046228,3.67693,2719.7,2719.1,0.8298]
[1739994046465,0.05800232,2719.3,2719.1,0.8298]
[1739994046671,3.67693,2719.7,2719.1,4.50746]
[1739994046837,0.05770064,2719.2,2719.1,4.50746]
[1739994047029,3.67693,2719.7,2719.1,5.37522305]
[1739994047233,0.05770064,2719.2,2719.1,0.8298]
[1739994047447,3.67716,2719.5,2719.1,0.8298]
[1739994047843,0.05783369,2719.4,2719.1,0.8298]
[1739994048049,0.05783369,2719.4,2719.1,4.50739]
[1739994048267,0.05783369,2719.4,2719.1,0.8298]
[1739994048464,3.67703,2719.6,2719.1,1.32979005]
[1739994048774,3.67703,2719.6,2719.1,4.50746]
[1739994049072,0.057859,2719.5,2719.1,4.50746]
[1739994049276,3.735029,2719.5,2719.1,0.8298]
[1739994049459,0.057859,2719.5,2719.1,0.8298]
[1739994049662,3.735069,2719.5,2719.1,0.8298]
[1739994050584,3.735009,2719.5,2719.1,0.8298]
[1739994050741,3.67735,2719.4,2719.1,0.8298]
[1739994050939,3.6779,2719.0,2718.5,0.814]
[1739994051266,3.67816,2718.8,2718.5,0.814]
[1739994051468,7.35636,2718.8,2718.3,0.814]
[1739994051788,3.73570236,2718.7,2718.3,1.795303]
[1739994052090,3.6784,2718.6,2718.3,1.795303]
[1739994052284,3.6786,2718.5,2718.0,0.798]
[1739994052444,3.7356896,2718.5,2718.0,0.798]
[1739994052788,0.0570896,2718.5,2718.0,0.798]
[1739994052951,3.7355796,2718.5,2718.0,0.798]
[1739994053150,0.0570896,2718.5,2718.0,1.77772]
[1739994054678,3.67864,2718.4,2718.0,0.798]
[1739994054883,0.0570896,2718.5,2717.7,0.7831]
[1739994055183,3.67918,2718.0,2717.7,0.7831]
[1739994055341,3.67896,2718.2,2717.7,0.7831]
[1739994055542,0.05628201,2718.1,2717.7,0.7831]
[1739994055785,3.67918,2718.0,2717.7,0.7831]
[1739994055961,0.05628201,2718.1,2717.7,0.7831]
[1739994056845,3.67929,2718.0,2717.7,0.7831]
[1739994057383,0.05614882,2717.9,2717.7,0.7831]
[1739994058685,3.67905,2718.1,2717.7,0.7831]
[1739994058854,0.05609046,2717.8,2717.7,0.7831]
[1739994059061,3.67899,2718.2,2717.7,0.7831]
[1739994059259,0.05609046,2717.8,2717.7,0.7831]
[1739994059459,3.67904,2718.1,2717.7,0.7831]
[1739994059654,0.05609046,2717.8,2717.7,0.7831]
[1739994059856,3.67904,2718.1,2717.7,0.7831]
[1739994060062,0.05609046,2717.8,2717.7,0.7831]
[1739994060273,3.67904,2718.1,2717.7,0.7831]
[1739994060590,3.0,2718.4,2717.7,0.7831]
[1739994060751,0.05620717,2718.0,2717.8,3.67935]
[1739994061077,3.67878,2718.3,2717.7,4.46258]
[1739994061289,0.05592557,2717.9,2717.7,4.46258]
[1739994061463,3.67878,2718.3,2717.7,4.46258]
[1739994061464,3.67904,2718.1,2717.7,0.7831]
[1739994061793,3.67878,2718.3,2717.7,4.46268]
[1739994061794,3.6789,2718.2,2717.7,4.46268]
[1739994061958,0.05598392,2718.0,2717.7,1.597343]
[1739994062294,3.67929,2718.0,2717.7,0.7831]
[1739994062460,3.67952,2717.8,2717.5,0.7751]
[1739994062865,0.05572634,2717.7,2717.5,0.7751]
[1739994063188,3.67944,2717.9,2717.5,0.7751]
[1739994063497,0.0556102,2717.6,2717.5,0.7751]
[1739994063650,7.35897,2717.8,2717.5,0.7751]
[1739994063852,0.0556102,2717.6,2717.4,0.0984]
[1739994064097,3.67959,2717.7,2717.4,0.0984]
[1739994064301,3.73525327,2717.5,2717.4,0.0984]
[1739994064497,0.05540327,2717.5,2717.4,0.0984]
[1739994065850,3.67972,2717.6,2717.4,0.0984]
[1739994066152,0.05540327,2717.5,2717.4,0.0984]
[1739994066703,0.05540327,2717.5,2717.4,0.9309]
[1739994066879,6.1301,2718.5,2717.6,0.8325]
[1739994067192,3.67865,2718.4,2717.7,3.67945]
[1739994067368,7.35737,2718.4,2717.8,3.67941]
[1739994067569,3.67865,2718.4,2717.6,0.8325]
[1739994067768,3.67905,2718.1,2717.6,4.5122]
[1739994068168,3.67934,2717.9,2717.6,0.8325]
[1739994068374,0.7624,2717.8,2717.4,0.0984]
[1739994068573,4.44188,2717.8,2717.4,0.0984]
[1739994068759,3.67985,2717.5,2717.4,0.0984]
[1739994068962,3.73499973,2717.5,2717.4,0.0984]
[1739994069676,0.05514973,2717.5,2717.4,0.0984]
[1739994069973,0.7624,2717.8,2717.4,0.0984]
[1739994070172,0.0553861,2717.7,2717.4,3.77828]
[1739994070392,5.36,2717.9,2717.4,5.348903]
[1739994070587,0.0552613,2717.6,2717.4,5.348903]
[1739994070901,5.36,2717.9,2717.5,3.67976]
[1739994071787,5.36,2717.9,2717.6,3.67962]
[1739994072309,5.36,2717.9,2717.7,3.67957]
[1739994072504,5.36,2717.9,2717.8,0.7811]
[1739994072661,0.8109,2718.4,2717.9,3.67919]
[1739994072857,3.67857,2718.5,2717.9,3.67919]
[1739994073083,3.67865,2718.4,2717.9,3.67919]
[1739994073706,3.67894,2718.2,2717.8,0.7811]
[1739994074080,3.67889,2718.3,2717.8,0.7811]
[1739994074430,3.67886,2718.3,2717.8,0.7811]
[1739994074998,3.67872,2718.4,2717.8,4.46051]
[1739994075304,3.67872,2718.4,2717.8,0.7811]
[1739994075478,3.67892,2718.2,2717.8,0.7811]
[1739994076196,0.05484738,2718.1,2717.8,4.46051]
[1739994076393,0.05484738,2718.1,2717.9,3.67925]
[1739994076599,3.6787,2718.4,2717.8,4.906571]
[1739994076801,0.05480109,2718.0,2717.8,4.906571]
[1739994076992,3.67878,2718.3,2717.8,4.906571]
[1739994077328,7.35764,2718.3,2717.8,1.227151]
[1739994077481,3.7338378,2718.2,2717.8,1.227151]
[1739994077826,3.67905,2718.1,2717.8,1.227151]
[1739994077982,3.67905,2718.1,2717.8,0.7811]
[1739994078318,0.05480109,2718.0,2717.8,0.7811]
[1739994078822,3.67891,2718.2,2717.8,0.7811]
[1739994079035,0.05489069,2717.9,2717.8,0.7811]
[1739994079314,0.05487862,2717.9,2717.8,0.7811]
[1739994079522,3.67877,2718.3,2717.8,4.906597]
[1739994079679,3.67877,2718.3,2717.8,1.227157]
[1739994079878,0.05505367,2718.2,2717.8,4.906517]
[1739994080116,3.67866,2718.4,2717.9,3.6793]
[1739994080414,0.05376202,2718.3,2717.8,1.227157]
[1739994080917,3.73255202,2718.3,2717.8,4.906557]
[1739994081676,0.05376202,2718.3,2717.8,0.7811]
[1739994081942,7.60242576,2718.2,2717.4,0.0984]
[1739994082077,3.67947,2717.8,2717.4,0.0984]
[1739994082285,0.05340586,2717.7,2717.4,0.0984]
[1739994082492,7.60235576,2718.2,2717.4,3.77836]
[1739994082781,3.67944,2717.8,2717.4,0.0984]
[1739994082979,0.05340586,2717.7,2717.4,0.0984]
[1739994083225,3.67932,2717.9,2717.4,0.0984]
[1739994083407,0.05334749,2717.6,2717.4,3.77837]
[1739994083617,3.67926,2718.0,2717.4,3.77837]
[1739994083821,0.05328912,2717.5,2717.4,0.0984]
[1739994084028,3.67938,2717.9,2717.4,0.0984]
[1739994084188,0.05328912,2717.5,2717.4,0.0984]
[1739994084380,3.67912,2718.1,2717.4,3.77838]
[1739994084733,0.05358094,2718.0,2717.9,3.67931]
[1739994084912,5.36,2718.3,2717.9,3.67931]
[1739994085285,0.05361918,2718.2,2717.9,3.67931]
[1739994085486,5.36,2718.3,2717.9,3.67931]
[1739994085687,0.05361918,2718.2,2717.6,0.7607]
[1739994085896,0.05361918,2718.2,2717.7,3.67947]
[1739994086100,3.73257918,2718.2,2717.7,4.491447]
[1739994086827,3.73257918,2718.2,2717.7,4.491557]
[1739994087618,0.05361918,2718.2,2717.8,3.67941]
[1739994088157,3.73281533,2718.1,2717.7,0.811977]
[1739994088455,3.73281533,2718.1,2717.6,4.44034]
[1739994089535,3.73281533,2718.1,2717.6,8.11998]
[1739994090161,3.73278533,2718.1,2717.6,4.44034]
[1739994090555,0.05364533,2718.1,2717.6,4.44034]
[1739994090967,7.35776,2718.3,2717.7,3.67948]
[1739994091141,0.05370367,2718.2,2717.7,3.67948]
[1739994091338,3.73268367,2718.2,2717.7,4.491462]
[1739994092069,3.67904,2718.1,2717.7,0.811982]
[1739994092466,0.0535749,2718.0,2717.7,0.811982]
[1739994092976,3.67891,2718.2,2717.7,0.811982]
[1739994093159,0.05363326,2718.1,2717.7,0.811982]
[1739994094262,0.05363326,2718.1,2717.7,4.491492]
[1739994094498,0.05363326,2718.1,2717.9,3.67924]
[1739994094776,0.7962,2718.7,2718.0,4.43634]
[1739994095077,3.67839,2718.6,2718.0,4.43634]
[1739994095434,3.67851,2718.5,2718.0,4.43634]
[1739994095967,3.67851,2718.5,2718.0,0.7572]
[1739994096265,3.67873,2718.4,2718.0,0.7572]
[1739994097333,3.67851,2718.5,2718.0,1.25337092]
[1739994097936,3.67852,2718.5,2718.0,0.7572]
[1739994098135,3.67877,2718.3,2717.8,0.7856]
[1739994098347,0.0540127,2718.2,2717.8,0.7856]
[1739994099086,3.67904,2718.1,2717.8,0.7856]
[1739994099246,3.67904,2718.1,2717.5,4.44915]
[1739994099584,3.73307601,2718.0,2717.5,5.435905]
[1739994100455,0.05389601,2718.0,2717.6,3.67965]
[1739994100878,4.47207,2718.2,2717.6,3.67965]
[1739994101190,3.67906,2718.1,2717.6,3.67965]
[1739994101376,0.05196217,2718.0,2717.5,5.435995]
[1739994101749,3.73119217,2718.0,2717.5,1.756155]
[1739994102057,3.73119217,2718.0,2717.4,0.0984]
[1739994102058,0.05196217,2718.0,2717.4,3.77837]
[1739994102262,3.73122217,2718.0,2717.4,3.77837]
[1739994102583,3.67934,2717.9,2717.4,0.0984]
[1739994102793,0.05184546,2717.8,2717.4,0.0984]
[1739994103149,3.67944,2717.8,2717.4,0.0984]
[1739994103444,0.0517871,2717.7,2717.4,0.0984]
[1739994103876,4.46964,2717.8,2717.4,0.0984]
[1739994104088,0.05172873,2717.6,2717.4,0.0984]
[1739994104403,0.7902,2717.8,2717.4,0.0984]
[1739994104404,0.05167036,2717.5,2717.4,0.0984]
[1739994104547,4.46966,2717.8,2717.4,0.0984]
[1739994104747,0.0517871,2717.7,2717.4,0.0984]
[1739994104978,0.7902,2717.8,2717.4,0.0984]
[1739994105143,0.0517871,2717.7,2717.4,3.77836]
[1739994105351,13.54405,2718.1,2717.6,0.8057]
[1739994105587,3.7310711,2718.0,2717.6,0.8057]
[1739994105812,3.7310711,2718.0,2717.4,0.9041]
[1739994106156,3.67939,2717.9,2717.4,0.9041]
[1739994106352,0.05166439,2717.8,2717.4,0.9041]
[1739994108002,0.05166439,2717.8,2717.4,4.58408]
[1739994108498,0.05166439,2717.8,2717.4,0.9041]
[1739994108862,3.73114439,2717.8,2717.4,0.9041]
[1739994109062,0.05166439,2717.8,2717.4,0.9041]
[1739994110754,3.73110439,2717.8,2717.4,0.9041]
[1739994110960,4.47215383,2717.8,2717.4,0.9041]
[1739994111161,3.67971,2717.6,2717.4,0.0984]
[1739994111386,3.73128976,2717.5,2717.4,0.0984]
[1739994111582,0.05143976,2717.5,2717.4,0.0984]
[1739994112028,3.73128976,2717.5,2717.4,0.0984]
[1739994112300,0.05143976,2717.5,2717.4,0.0984]
[1739994112489,3.73128976,2717.5,2717.4,0.0984]
[1739994112689,4.55556074,2717.5,2717.4,0.0984]
[1739994116126,5.32266074,2717.5,2717.4,0.0984]
[1739994116496,1.64281074,2717.5,2717.4,0.0984]
[1739994116680,5.32266074,2717.5,2717.4,0.0984]
[1739994120637,8.32266074,2717.5,2717.4,0.0984]
[1739994121839,13.95666074,2717.5,2717.4,0.04406769]
[1739994122341,14.50666074,2717.5,2717.4,7.69e-06]
[1739994122845,13.95666074,2717.5,2717.4,7.69e-06]
[1739994123198,14.50666074,2717.5,2717.4,7.69e-06]
[1739994124926,13.95666074,2717.5,2717.4,7.69e-06]
[1739994127631,14.50666074,2717.5,2717.4,7.69e-06]
[1739994128140,3.68134,2716.4,2716.3,0.801]
[1739994128359,0.04936726,2716.4,2715.8,0.801]
[1739994128522,3.73078726,2716.4,2715.8,0.801]
[1739994128850,0.04937347,2716.3,2715.8,0.801]
[1739994129515,3.68202,2715.9,2715.4,3.68265]
[1739994129726,3.68216,2715.8,2715.5,0.7858]
[1739994129953,3.73114217,2715.8,2715.5,0.7858]
[1739994130105,3.68236,2715.7,2715.2,0.7858]
[1739994130310,3.68266,2715.5,2715.2,0.7858]
[1739994130559,3.65063078,2715.6,2715.2,0.7858]
[1739994130721,0.04853342,2715.4,2715.2,0.7858]
[1739994131048,3.68257,2715.5,2714.9,6.1311]
[1739994131049,0.04844184,2715.3,2714.9,6.1311]
[1739994131221,0.04844184,2715.3,2714.9,0.8111]
[1739994131619,3.73132184,2715.3,2714.9,0.8111]
[1739994132070,4.47271102,2715.3,2714.9,0.8111]
[1739994132235,0.78983102,2715.3,2714.9,0.8111]
[1739994132622,0.04844184,2715.3,2714.9,0.8111]
[1739994132819,3.68271,2715.4,2714.9,0.8111]
[1739994133154,0.04840877,2715.3,2714.9,0.8111]
[1739994133655,3.68299,2715.2,2714.7,0.7714]
[1739994134054,0.0482918,2715.1,2714.7,0.7714]
[1739994134612,3.68324,2715.0,2714.5,0.7862]
[1739994134823,0.04735687,2714.9,2714.5,0.7862]
[1739994135222,0.04735687,2714.9,2714.5,4.47003]
[1739994135421,3.0,2715.2,2714.5,4.46999]
[1739994135624,0.04747382,2715.1,2714.5,4.46999]
[1739994136164,0.32247382,2715.1,2714.6,3.68378]
[1739994136371,0.04747382,2715.1,2714.8,3.6834]
[1739994136674,0.04747382,2715.1,2715.0,3.68324]
[1739994137868,0.04747382,2715.1,2715.0,5.333921]
[1739994138239,0.275,2716.1,2715.6,0.8315]
[1739994138759,0.04355822,2716.0,2715.6,0.8315]
[1739994139070,3.72551822,2716.0,2715.6,0.8315]
[1739994140374,3.68212,2715.9,2715.6,0.8315]
[1739994140525,3.90963576,2715.7,2715.0,0.793]
[1739994140730,3.68269,2715.4,2715.0,0.793]
[1739994141027,0.04321519,2715.3,2715.0,0.793]
[1739994142571,0.04321519,2715.3,2714.4,0.793]
[1739994142877,3.683,2715.2,2714.5,3.68389]
[1739994143044,8.0533751,2715.2,2714.5,3.68384]
[1739994143238,3.68331,2715.0,2714.4,0.793]
[1739994143661,0.04149427,2714.9,2714.4,0.793]
[1739994144156,3.72487427,2714.9,2714.4,0.793]
[1739994144386,1.50371843,2714.8,2714.3,3.68419]
[1739994144710,0.04137729,2714.7,2714.3,3.6841]
[1739994144875,0.04137729,2714.7,2714.6,4.51708]
[1739994145058,6.0472951,2715.2,2714.7,3.68362]
[1739994145493,6.0472951,2715.2,2714.8,3.68349]
[1739994146085,0.04161124,2715.1,2714.8,3.68349]
[1739994148404,0.04161124,2715.1,2714.7,3.68353]
[1739994148901,0.04161124,2715.1,2714.8,3.68341]
[1739994149104,0.04161124,2715.1,2714.7,3.68353]
[1739994149261,0.04161124,2715.1,2714.7,7.3671]
[1739994149461,0.04161124,2715.1,2714.7,3.68353]
[1739994149700,0.04161124,2715.1,2714.9,3.68333]
[1739994150202,3.0,2715.3,2715.0,3.68324]
[1739994150375,0.04123395,2715.2,2715.0,3.68324]
[1739994150573,1.49248099,2715.6,2715.1,0.7982]
[1739994150779,0.6852481,2715.5,2715.2,3.68289]
[1739994151191,0.6852481,2715.5,2715.1,4.48127]
[1739994151378,0.6852481,2715.5,2715.1,8.16427]
[1739994151705,3.7675,2715.6,2715.2,3.68294]
[1739994152199,3.7675,2715.6,2715.1,4.4813]
[1739994152405,3.7675,2715.6,2715.2,3.68289]
[1739994152574,3.0,2715.6,2715.4,3.68268]
[1739994152776,3.0,2715.6,2715.1,0.7982]
[1739994153183,3.0,2715.6,2715.0,3.68314]
[1739994153184,8.07079638,2715.6,2715.0,3.68314]
[1739994153392,8.07079638,2715.6,2715.0,7.36631]
[1739994153798,0.04072885,2715.5,2715.0,7.36631]
[1739994153995,0.04072885,2715.5,2715.0,3.68314]
[1739994154305,0.7706,2715.3,2714.7,3.68361]
[1739994154502,4.84926646,2715.3,2714.7,3.68361]
[1739994154811,0.04049297,2715.2,2714.7,3.68361]
[1739994156470,0.04049297,2715.2,2714.8,3.6835]
[1739994156673,0.04049297,2715.2,2714.7,3.68364]
[1739994156885,1.16640646,2715.3,2714.9,3.68333]
[1739994157191,4.84924646,2715.3,2714.8,3.68337]
[1739994157400,0.04040829,2715.2,2714.8,3.68337]
[1739994157578,1.16640646,2715.3,2714.8,3.68337]
[1739994157773,0.04040829,2715.2,2714.9,3.68336]
[1739994157972,1.16640646,2715.3,2714.9,3.68336]
[1739994158310,0.04040829,2715.2,2714.9,3.68336]
[1739994158515,0.04040829,2715.2,2714.8,3.68337]
[1739994158812,0.04034981,2715.1,2714.8,3.68337]
[1739994158970,8.53218646,2715.3,2714.8,3.68337]
[1739994159175,8.53218646,2715.3,2714.6,4.46037]
[1739994159176,0.89362694,2715.2,2714.7,3.68357]
[1739994160109,0.89362694,2715.2,2714.7,3.68355]
[1739994160321,0.04040829,2715.2,2714.9,3.6833]
[1739994160611,1.16640646,2715.3,2714.9,3.6833]
[1739994160790,0.03884513,2715.2,2714.9,3.6833]
[1739994160988,1.16640646,2715.3,2714.9,3.6833]
[1739994161180,0.03884513,2715.2,2714.9,3.6833]
[1739994161376,1.16640646,2715.3,2714.9,3.6833]
[1739994161581,1.16640646,2715.3,2715.0,3.68323]
[1739994161582,0.03884513,2715.2,2715.0,3.68323]
[1739994161776,1.16640646,2715.3,2715.0,3.68323]
[1739994162082,0.03890563,2715.2,2715.0,3.68323]
[1739994162427,5.36,2715.4,2715.0,3.68323]
[1739994162578,0.0389641,2715.3,2714.9,7.3666]
[1739994163316,0.0389641,2715.3,2714.9,3.6833]
[1739994163817,3.7218141,2715.3,2714.8,3.6835]
[1739994164020,0.8024,2715.2,2714.7,3.68353]
[1739994164194,0.8024,2715.2,2714.8,3.6835]
[1739994164595,0.0388532,2715.1,2714.8,3.6835]
[1739994165289,0.0388532,2715.1,2714.8,3.68351]
[1739994166421,0.0388532,2715.1,2714.9,3.68325]
[1739994166584,0.0388532,2715.1,2714.8,3.68351]
[1739994167023,0.0388532,2715.1,2714.8,7.36696]
[1739994167219,0.0388532,2715.1,2714.9,3.68328]
[1739994167420,5.36,2715.4,2715.0,3.68324]
[1739994167583,1.09587325,2715.3,2715.0,3.68324]
[1739994167924,0.03897015,2715.3,2715.0,3.68324]
[1739994168085,0.03897015,2715.3,2715.2,3.68296]
[1739994169215,5.36,2715.4,2715.3,3.68283]
[1739994170729,5.36,2715.4,2715.1,3.68307]
[1739994171120,5.36,2715.4,2714.9,0.807]
[1739994171288,10.022659,2715.4,2714.9,3.68326]
[1739994171483,6.339949,2715.4,2715.1,3.68309]
[1739994171697,0.979949,2715.4,2715.1,7.3661]
[1739994171902,0.03885289,2715.3,2715.1,7.3661]
[1739994172220,0.03885289,2715.3,2715.2,3.68296]
[1739994172927,4.43955,2715.6,2714.8,3.68351]
[1739994173087,0.03885289,2715.3,2714.7,0.807]
[1739994173293,4.43955,2715.6,2715.2,3.6829]
[1739994173294,0.757,2715.6,2715.2,3.6829]
[1739994173489,1.80971556,2715.6,2715.0,3.68313]
[1739994173693,3.68256,2715.5,2714.9,3.68331]
[1739994174331,7.3652,2715.5,2714.9,3.68331]
[1739994174810,3.68256,2715.5,2714.9,3.68331]
[1739994175126,3.68283,2715.3,2714.7,3.68363]
[1739994175288,0.446643,2715.2,2714.8,3.68344]
[1739994175495,0.03879442,2715.2,2714.8,3.68344]
[1739994176024,0.03873594,2715.1,2714.8,3.68344]
[1739994176191,3.68289,2715.3,2714.7,3.68364]
[1739994176534,0.03879442,2715.2,2714.7,3.68364]
[1739994177228,3.72178442,2715.2,2714.7,3.68361]
[1739994177527,0.37217844,2715.1,2714.8,3.68347]
[1739994177697,0.03879442,2715.2,2714.6,3.68369]
[1739994177904,0.03853687,2715.0,2714.6,3.68369]
[1739994178114,0.85559536,2715.1,2714.6,3.68369]
[1739994178330,0.03847838,2714.9,2714.6,3.68369]
[1739994178637,0.817,2715.1,2714.4,3.68395]
[1739994178638,0.03841988,2714.8,2714.4,3.68392]
[1739994178807,3.68332,2715.0,2714.5,3.68385]
[1739994179014,0.03847838,2714.9,2714.5,3.68385]
[1739994180724,0.03847838,2714.9,2714.5,3.6838]
[1739994180938,0.03847838,2714.9,2714.6,3.6837]
[1739994181454,9.86012,2715.1,2714.6,3.6837]
[1739994181650,0.0385286,2715.0,2714.6,3.6837]
[1739994181810,0.0385286,2715.0,2714.3,0.8046]
[1739994182160,0.0385286,2715.0,2714.6,7.36736]
[1739994182634,0.0385286,2715.0,2714.5,3.68381]
[1739994183039,3.7218386,2715.0,2714.5,3.68381]
[1739994183830,0.0385286,2715.0,2714.6,3.68377]
[1739994184028,1.06377298,2714.9,2714.6,3.68366]
[1739994184236,0.0385286,2715.0,2714.6,3.68366]
[1739994184237,0.03821807,2714.8,2714.6,3.68366]
[1739994184538,7.01442115,2715.1,2714.6,3.68364]
[1739994184741,0.03815957,2714.7,2714.6,3.68364]
[1739994184916,7.01442115,2715.1,2714.6,3.68364]
[1739994185115,0.03815957,2714.7,2714.6,3.68364]
[1739994185361,7.01442115,2715.1,2714.6,3.68364]
[1739994185531,0.03815957,2714.7,2714.6,3.68364]
[1739994185727,1.06974412,2715.0,2714.6,3.68364]
[1739994186262,0.03826003,2714.9,2714.6,3.68369]
[1739994187062,0.03826003,2714.9,2714.5,3.68389]
[1739994187435,0.03826003,2714.9,2714.6,3.68378]
[1739994189627,0.03826003,2714.9,2714.6,3.68371]
[1739994189827,0.03826003,2714.9,2714.8,3.68351]
[1739994190064,5.4584,2715.1,2714.8,3.68351]
[1739994190260,0.03820964,2715.0,2714.8,3.68351]
[1739994192264,0.03820964,2715.0,2714.7,0.8186]
[1739994192561,0.03820964,2715.0,2714.7,4.50221]
[1739994193673,0.03820964,2715.0,2714.7,0.8186]
[1739994193877,0.03820964,2715.0,2714.8,3.68345]
[1739994194874,0.03820964,2715.0,2714.9,3.68337]
[1739994195076,0.0984,2715.1,2714.9,3.68337]
[1739994195281,0.0984,2715.1,2715.0,3.68324]
[1739994197664,0.13679312,2715.1,2715.0,3.68324]
[1739994202161,0.13679312,2715.1,2715.0,4.44464]
[1739994202491,0.0984,2715.1,2715.0,5.257439]
[1739994205495,0.0984,2715.1,2715.0,3.68324]
[1739994205995,0.13728907,2715.1,2715.0,3.68324]
[1739994208404,0.0984,2715.1,2715.0,3.68324]
[1739994209767,0.13580205,2715.1,2715.0,3.68324]
[1739994210298,0.0984,2715.1,2715.0,3.68324]
[1739994212495,0.13580205,2715.1,2715.0,3.68324]
[1739994212696,0.13580205,2715.1,2714.9,3.68335]
[1739994214708,0.13580205,2715.1,2714.7,4.48262]
[1739994214910,0.13580205,2715.1,2714.8,3.68339]
[1739994215274,0.857,2715.1,2714.8,3.68339]
[1739994216374,0.03734356,2715.0,2714.8,3.68339]
[1739994220696,0.03734356,2715.0,2714.9,3.68337]
[1739994221015,0.03734356,2715.0,2714.9,4.49127]
[1739994221314,0.0984,2715.1,2715.0,3.68324]
[1739994221486,1e-05,2715.1,2715.0,8.04114]
[1739994221890,1e-05,2715.1,2715.0,13.46114]
[1739994222202,1e-05,2715.1,2715.0,17.19433725]
[1739994222448,1e-05,2715.1,2715.0,17.09433725]
[1739994233641,1e-05,2715.1,2715.0,15.73643725]
[1739994233842,1e-05,2715.1,2715.0,12.00324]
[1739994234057,1e-05,2715.1,2715.0,3.68324]
[1739994234371,0.79601,2715.1,2714.7,3.68357]
[1739994234540,0.79601,2715.1,2714.7,7.36712]